fUST/lending_fUST_20240906
["ID","MTS","AMOUNT","RATE_DAILY","PERIOD"]
[337379680,1725635454339,-1202.22,0.00019178,2]
[337379681,1725635454349,-1418.48,0.00019178,2]
[337379682,1725635454358,-500.0,0.00019178,2]
[337379683,1725635454368,-500.0,0.00019178,2]
[337379684,1725635454378,-500.0,0.00019178,2]
[337379685,1725635454388,-500.0,0.00019178,2]
[337379686,1725635454398,-519.47,0.00019178,2]
[337379687,1725635454408,-500.0,0.00019178,2]
[337379688,1725635454417,-500.0,0.00019178,2]
[337379689,1725635454427,-500.0,0.00019178,2]
[337379690,1725635454436,-500.0,0.00019178,2]
[337379691,1725635454446,-500.0,0.00019178,2]
[337379692,1725635454455,-500.0,0.00019178,2]
[337379694,1725635454467,-500.0,0.00019178,2]
[337379696,1725635454477,-500.0,0.00019178,2]
[337379698,1725635454486,-500.0,0.00019178,2]
[337379700,1725635454496,-500.0,0.00019178,2]
[337379702,1725635454506,-500.0,0.00019178,2]
[337379704,1725635454516,-500.0,0.00019178,2]
[337379706,1725635454527,-500.0,0.00019178,2]
[337379708,1725635454537,-500.0,0.00019178,2]
[337379710,1725635454546,-500.0,0.00019178,2]
[337379712,1725635454556,-503.37539464,0.00019178,2]
[337379714,1725635454565,-500.0,0.00019178,2]
[337379716,1725635454575,-544.17188746,0.00019178,2]
[337379718,1725635454585,-500.0,0.00019178,2]
[337379720,1725635454594,-500.0,0.00019178,2]
[337379723,1725635454604,-500.0,0.00019178,2]
[337379725,1725635454614,-500.0,0.00019178,2]
[337379726,1725635454623,-500.0,0.00019178,2]
[337379728,1725635454632,-500.0,0.00019178,2]
[337379731,1725635454642,-500.0,0.00019178,2]
[337379732,1725635454654,-525.77,0.00019178,2]
[337379734,1725635454671,-1034.0,0.00019178,2]
[337379736,1725635454680,-500.0,0.00019178,2]
[337379738,1725635454690,-500.0,0.00019178,2]
[337379741,1725635454699,-500.0,0.00019178,2]
[337379743,1725635454712,-500.0,0.00019178,2]
[337379745,1725635454725,-500.0,0.00019178,2]
[337379747,1725635454735,-545.55,0.00019178,2]
[337379749,1725635454744,-500.0,0.00019178,2]
[337379751,1725635454754,-500.0,0.00019178,2]
[337379753,1725635454763,-500.0,0.00019178,2]
[337379755,1725635454772,-500.0,0.00019178,2]
[337379757,1725635454781,-500.0,0.00019178,2]
[337379759,1725635454791,-500.0,0.00019178,2]
[337379761,1725635454800,-500.0,0.00019178,2]
[337379762,1725635454809,-521.79208002,0.00019178,2]
[337379764,1725635454819,-500.0,0.00019178,2]
[337379766,1725635454828,-449.65018494,0.00019178,2]
[337379768,1725635454838,-500.0,0.00019178,2]
[337379771,1725635454848,-500.0,0.00019178,2]
[337379773,1725635454858,-500.0,0.00019178,2]
[337379774,1725635454867,-500.0,0.00019178,2]
[337379776,1725635454877,-500.0,0.00019178,2]
[337379779,1725635454886,-500.0,0.00019178,2]
[337379780,1725635454896,-500.0,0.00019178,2]
[337379783,1725635454905,-500.0,0.00019178,2]
[337379785,1725635454915,-500.0,0.00019178,2]
[337379787,1725635454925,-500.0,0.00019178,2]
[337379789,1725635454934,-500.0,0.00019178,2]
[337379790,1725635454944,-500.0,0.00019178,2]
[337379793,1725635454955,-500.0,0.00019178,2]
[337379795,1725635454968,-500.0,0.00019178,2]
[337379796,1725635454978,-475.27128082,0.00019178,2]
[337379798,1725635454987,-500.0,0.00019178,2]
[337379801,1725635454998,-500.0,0.00019178,2]
[337379802,1725635455007,-500.0,0.00019178,2]
[337379805,1725635455017,-500.0,0.00019178,2]
[337379807,1725635455026,-500.0,0.00019178,2]
[337379809,1725635455036,-500.0,0.00019178,2]
[337379811,1725635455048,-500.0,0.00019178,2]
[337379813,1725635455057,-500.0,0.00019178,2]
[337379815,1725635455067,-500.0,0.00019178,2]
[337379817,1725635455076,-500.0,0.00019178,2]
[337379819,1725635455086,-500.0,0.00019178,2]
[337379821,1725635455095,-1295.57,0.00019178,2]
[337379823,1725635455105,-500.0,0.00019178,2]
[337379825,1725635455115,-500.0,0.00019178,2]
[337379827,1725635455125,-1571.91,0.00019178,2]
[337379829,1725635455135,-500.0,0.00019178,2]
[337379831,1725635455144,-500.0,0.00019178,2]
[337379833,1725635455154,-500.0,0.00019178,2]
[337379834,1725635455163,-1237.9,0.00019178,2]
[337379836,1725635455173,-500.0,0.00019178,2]
[337379838,1725635455182,-500.0,0.00019178,2]
[337379840,1725635455191,-505.83141265,0.00019178,2]
[337379842,1725635455200,-200.0,0.00019178,2]
[337379844,1725635455214,-500.0,0.00019178,2]
[337379846,1725635455223,-589.91,0.00019178,2]
[337379848,1725635455233,-500.0,0.00019178,2]
[337379850,1725635455243,-1264.18,0.00019178,2]
[337379853,1725635455253,-500.0,0.00019178,2]
[337379855,1725635455264,-500.0,0.00019178,2]
[337379857,1725635455274,-643.02,0.00019178,2]
[337379859,1725635455284,-500.0,0.00019178,2]
[337379861,1725635455293,-500.0,0.00019178,2]
[337379863,1725635455303,-500.0,0.00019178,2]
[337379865,1725635455313,-500.0,0.00019178,2]
[337379866,1725635455322,-515.14975223,0.00019178,2]
[337379868,1725635455331,-500.0,0.00019178,2]
[337379870,1725635455341,-500.0,0.00019178,2]
[337379872,1725635455351,-500.11748159,0.00019178,2]
[337379874,1725635455361,-181.4378267,0.00019178,2]
[337379876,1725635455370,-808.94,0.00019178,2]
[337379878,1725635455380,-500.0,0.00019178,2]
[337379880,1725635455390,-487.89225779,0.00019178,2]
[337379882,1725635455399,-500.0,0.00019178,2]
[337379884,1725635455409,-500.0,0.00019178,2]
[337379886,1725635455419,-500.0,0.00019178,2]
[337379889,1725635455431,-500.0,0.00019178,2]
[337379891,1725635455443,-500.0,0.00019178,2]
[337379910,1725635455622,-500.0,0.00019178,2]
[337379912,1725635455632,-500.0,0.00019178,2]
[337379914,1725635455642,-557.40402983,0.00019178,2]
[337379917,1725635455655,-1186.79,0.00019178,2]
[337379919,1725635455665,-500.0,0.00019178,2]
[337379921,1725635455674,-500.0,0.00019178,2]
[337379923,1725635455683,-513.66884988,0.00019178,2]
[337379925,1725635455692,-500.0,0.00019178,2]
[337379927,1725635455701,-500.0,0.00019178,2]
[337379929,1725635455712,-520.76001129,0.00019178,2]
[337379930,1725635455722,-500.0,0.00019178,2]
[337379932,1725635455731,-500.0,0.00019178,2]
[337379934,1725635455741,-500.0,0.00019178,2]
[337379936,1725635455750,-460.07674919,0.00019178,2]
[337379938,1725635455759,-601.88,0.00019178,2]
[337379940,1725635455769,-500.0,0.00019178,2]
[337379942,1725635455778,-500.0,0.00019178,2]
[337379944,1725635455788,-548.95,0.00019178,2]
[337379946,1725635455798,-500.0,0.00019178,2]
[337379948,1725635455808,-500.0,0.00019178,2]
[337379950,1725635455818,-500.0,0.00019178,2]
[337379952,1725635455827,-500.0,0.00019178,2]
[337379955,1725635455836,-500.0,0.00019178,2]
[337379956,1725635455846,-500.0,0.00019178,2]
[337379959,1725635455856,-587.02,0.00019178,2]
[337379961,1725635455865,-500.0,0.00019178,2]
[337379962,1725635455875,-500.0,0.00019178,2]
[337379964,1725635455883,-500.0,0.00019178,2]
[337379967,1725635455894,-500.0,0.00019178,2]
[337379968,1725635455903,-570.98,0.00019178,2]
[337379970,1725635455913,-500.0,0.00019178,2]
[337379972,1725635455922,-500.0,0.00019178,2]
[337379974,1725635455931,-500.0,0.00019178,2]
[337379976,1725635455942,-241.16265495,0.00019178,2]
[337379978,1725635455951,-500.0,0.00019178,2]
[337379981,1725635455965,-500.0,0.00019178,2]
[337379983,1725635455974,-1624.21,0.00019178,2]
[337379985,1725635455983,-500.0,0.00019178,2]
[337379986,1725635455992,-500.0,0.00019178,2]
[337379988,1725635456001,-500.0,0.00019178,2]
[337379991,1725635456012,-500.0,0.00019178,2]
[337379993,1725635456022,-959.09,0.00019178,2]
[337379995,1725635456034,-500.0,0.00019178,2]
[337379997,1725635456045,-500.0,0.00019178,2]
[337379999,1725635456056,-500.0,0.00019178,2]
[337380001,1725635456066,-500.0,0.00019178,2]
[337380003,1725635456076,-529.54,0.00019178,2]
[337380005,1725635456087,-500.0,0.00019178,2]
[337380007,1725635456096,-500.0,0.00019178,2]
[337380009,1725635456106,-500.0,0.00019178,2]
[337380011,1725635456117,-500.0,0.00019178,2]
[337380013,1725635456128,-500.0,0.00019178,2]
[337380015,1725635456138,-619.87,0.00019178,2]
[337380017,1725635456147,-500.0,0.00019178,2]
[337380020,1725635456158,-500.0,0.00019178,2]
[337380022,1725635456169,-500.0,0.00019178,2]
[337380024,1725635456180,-500.0,0.00019178,2]
[337380026,1725635456191,-500.0,0.00019178,2]
[337380028,1725635456201,-1123.51,0.00019178,2]
[337380030,1725635456215,-407.3402149,0.00019178,2]
[337380032,1725635456224,-500.0,0.00019178,2]
[337380034,1725635456234,-500.0,0.00019178,2]
[337380036,1725635456244,-500.0,0.00019178,2]
[337380038,1725635456254,-500.0,0.00019178,2]
[337380040,1725635456264,-462.25,0.00019178,2]
[337380042,1725635456273,-500.0,0.00019178,2]
[337380044,1725635456283,-500.0,0.00019178,2]
[337380046,1725635456293,-500.0,0.00019178,2]
[337380048,1725635456303,-500.0,0.00019178,2]
[337380050,1725635456315,-500.0,0.00019178,2]
[337380053,1725635456326,-500.0,0.00019178,2]
[337380055,1725635456336,-500.0,0.00019178,2]
[337380057,1725635456345,-500.0,0.00019178,2]
[337380059,1725635456355,-1306.31,0.00019178,2]
[337380061,1725635456365,-500.0,0.00019178,2]
[337380063,1725635456375,-500.0,0.00019178,2]
[337380065,1725635456385,-500.0,0.00019178,2]
[337380067,1725635456395,-500.0,0.00019178,2]
[337380069,1725635456404,-207.89771749,0.00019178,2]
[337380071,1725635456414,-500.0,0.00019178,2]
[337380073,1725635456424,-500.0,0.00019178,2]
[337380075,1725635456434,-500.0,0.00019178,2]
[337380077,1725635456443,-500.0,0.00019178,2]
[337380079,1725635456453,-500.0,0.00019178,2]
[337380081,1725635456466,-506.8401281,0.00019178,2]
[337380083,1725635456476,-500.0,0.00019178,2]
[337380085,1725635456486,-500.0,0.00019178,2]
[337380087,1725635456495,-500.0,0.00019178,2]
[337380089,1725635456504,-500.0,0.00019178,2]
[337380091,1725635456514,-500.0,0.00019178,2]
[337380093,1725635456524,-860.27,0.00019178,2]
[337380095,1725635456535,-500.0,0.00019178,2]
[337380097,1725635456545,-500.0,0.00019178,2]
[337380099,1725635456554,-500.0,0.00019178,2]
[337380101,1725635456565,-500.0,0.00019178,2]
[337380103,1725635456574,-500.0,0.00019178,2]
[337380105,1725635456584,-500.0,0.00019178,2]
[337380107,1725635456594,-500.0,0.00019178,2]
[337380109,1725635456603,-562.79119223,0.00019178,2]
[337380111,1725635456613,-500.0,0.00019178,2]
[337380113,1725635456623,-559.04,0.00019178,2]
[337380115,1725635456632,-1335.92,0.00019178,2]
[337380117,1725635456641,-1022.33,0.00019178,2]
[337380119,1725635456651,-500.0,0.00019178,2]
[337380121,1725635456663,-500.0,0.00019178,2]
[337380123,1725635456673,-500.0,0.00019178,2]
[337380125,1725635456682,-500.0,0.00019178,2]
[337380127,1725635456691,-500.0,0.00019178,2]
[337380129,1725635456702,-500.0,0.00019178,2]
[337380131,1725635456714,-1961.67,0.00019178,2]
[337380133,1725635456724,-899.05,0.00019178,2]
[337380135,1725635456735,-500.0,0.00019178,2]
[337380137,1725635456747,-500.0,0.00019178,2]
[337380140,1725635456760,-500.0,0.00019178,2]
[337380142,1725635456769,-500.0,0.00019178,2]
[337380144,1725635456779,-500.0,0.00019178,2]
[337380146,1725635456788,-619.65,0.00019178,2]
[337380148,1725635456799,-500.0,0.00019178,2]
[337380150,1725635456809,-500.0,0.00019178,2]
[337380152,1725635456818,-500.0,0.00019178,2]
[337380154,1725635456829,-500.0,0.00019178,2]
[337380156,1725635456839,-436.89814035,0.00019178,2]
[337380157,1725635456849,-256.52233819,0.00019178,2]
[337380158,1725635456860,-500.0,0.00019178,2]
[337380159,1725635456869,-500.0,0.00019178,2]
[337380160,1725635456879,-524.01,0.00019178,2]
[337380161,1725635456888,-500.0,0.00019178,2]
[337380162,1725635456899,-500.0,0.00019178,2]
[337380164,1725635456911,-500.0,0.00019178,2]
[337380166,1725635456921,-500.0,0.00019178,2]
[337380168,1725635456932,-500.0,0.00019178,2]
[337380171,1725635456944,-490.96411894,0.00019178,2]
[337380173,1725635456958,-500.0,0.00019178,2]
[337380175,1725635456969,-500.0,0.00019178,2]
[337380177,1725635456979,-500.0,0.00019178,2]
[337380179,1725635456988,-500.0,0.00019178,2]
[337380181,1725635456998,-500.0,0.00019178,2]
[337380183,1725635457007,-500.0,0.00019178,2]
[337380185,1725635457016,-500.0,0.00019178,2]
[337380187,1725635457025,-277.60250945,0.00019178,2]
[337380189,1725635457036,-500.0,0.00019178,2]
[337380191,1725635457045,-500.0,0.00019178,2]
[337380193,1725635457055,-1054.39,0.00019178,2]
[337380195,1725635457064,-224.27148364,0.00019178,2]
[337380197,1725635457073,-1709.92,0.00019178,2]
[337380199,1725635457083,-500.0,0.00019178,2]
[337380201,1725635457092,-500.0,0.00019178,2]
[337380203,1725635457101,-608.17,0.00019178,2]
[337380205,1725635457110,-500.0,0.00019178,2]
[337380207,1725635457120,-500.0,0.00019178,2]
[337380209,1725635457129,-1974.51,0.00019178,2]
[337380211,1725635457139,-500.0,0.00019178,2]
[337380213,1725635457149,-503.76363957,0.00019178,2]
[337380215,1725635457159,-500.0,0.00019178,2]
[337380217,1725635457171,-502.81174126,0.00019178,2]
[337380219,1725635457181,-500.0,0.00019178,2]
[337380221,1725635457190,-500.0,0.00019178,2]
[337380223,1725635457200,-500.0,0.00019178,2]
[337380225,1725635457209,-500.0,0.00019178,2]
[337380227,1725635457220,-500.0,0.00019178,2]
[337380229,1725635457230,-500.0,0.00019178,2]
[337380231,1725635457239,-500.0,0.00019178,2]
[337380233,1725635457248,-1144.39,0.00019178,2]
[337380235,1725635457258,-500.0,0.00019178,2]
[337380237,1725635457268,-500.0,0.00019178,2]
[337380239,1725635457278,-500.0,0.00019178,2]
[337380241,1725635457288,-328.1745617,0.00019178,2]
[337380243,1725635457297,-1367.3,0.00019178,2]
[337380245,1725635457307,-500.0,0.00019178,2]
[337380247,1725635457317,-872.73,0.00019178,2]
[337380249,1725635457326,-500.0,0.00019178,2]
[337380251,1725635457337,-500.0,0.00019178,2]
[337380253,1725635457346,-1320.77,0.00019178,2]
[337380255,1725635457356,-1389.96,0.00019178,2]
[337380257,1725635457366,-500.0,0.00019178,2]
[337380259,1725635457376,-500.0,0.00019178,2]
[337380261,1725635457385,-500.0,0.00019178,2]
[337380263,1725635457395,-751.95,0.00019178,2]
[337380265,1725635457405,-500.0,0.00019178,2]
[337380267,1725635457414,-500.0,0.00019178,2]
[337380269,1725635457424,-500.0,0.00019178,2]
[337380271,1725635457434,-500.0,0.00019178,2]
[337380273,1725635457444,-571.12,0.00019178,2]
[337380275,1725635457454,-500.0,0.00019178,2]
[337380277,1725635457466,-1191.1,0.00019178,2]
[337380279,1725635457475,-500.0,0.00019178,2]
[337380281,1725635457484,-500.0,0.00019178,2]
[337380283,1725635457494,-500.0,0.00019178,2]
[337380285,1725635457504,-1742.36,0.00019178,2]
[337380287,1725635457513,-6868.04,0.00019178,2]
[337380289,1725635457523,-500.0,0.00019178,2]
[337380291,1725635457532,-500.0,0.00019178,2]
[337380293,1725635457542,-1225.08,0.00019178,2]
[337380295,1725635457552,-1584.91,0.00019178,2]
[337380297,1725635457561,-500.0,0.00019178,2]
[337380299,1725635457571,-515.26,0.00019178,2]
[337380301,1725635457580,-1263.83,0.00019178,2]
[337380304,1725635457590,-500.0,0.00019178,2]
[337380306,1725635457600,-500.0,0.00019178,2]
[337380308,1725635457609,-1124.13,0.00019178,2]
[337380310,1725635457619,-500.0,0.00019178,2]
[337380312,1725635457628,-500.0,0.00019178,2]
[337380314,1725635457639,-669.78,0.00019178,2]
[337380316,1725635457649,-500.0,0.00019178,2]
[337380318,1725635457663,-500.0,0.00019178,2]
[337380320,1725635457672,-2764.07,0.00019178,2]
[337380322,1725635457682,-500.0,0.00019178,2]
[337380324,1725635457692,-500.0,0.00019178,2]
[337380326,1725635457702,-1210.88,0.00019178,2]
[337380328,1725635457714,-500.0,0.00019178,2]
[337380330,1725635457728,-1286.07,0.00019178,2]
[337380332,1725635457739,-500.0,0.00019178,2]
[337380334,1725635457748,-500.0,0.00019178,2]
[337380336,1725635457759,-500.0,0.00019178,2]
[337380338,1725635457769,-500.0,0.00019178,2]
[337380340,1725635457779,-5445.49,0.00019178,2]
[337380342,1725635457788,-500.0,0.00019178,2]
[337380344,1725635457797,-646.12,0.00019178,2]
[337380346,1725635457807,-500.0,0.00019178,2]
[337380348,1725635457817,-500.0,0.00019178,2]
[337380351,1725635457826,-500.0,0.00019178,2]
[337380353,1725635457836,-1576.49,0.00019178,2]
[337380355,1725635457846,-62882.5,0.00019178,2]
[337380357,1725635457855,-1881.02,0.00019178,2]
[337380359,1725635457864,-500.0,0.00019178,2]
[337380361,1725635457874,-829.68,0.00019178,2]
[337380363,1725635457883,-500.0,0.00019178,2]
[337380365,1725635457892,-705.41,0.00019178,2]
[337380367,1725635457901,-500.0,0.00019178,2]
[337380369,1725635457910,-174.45346913,0.00019178,2]
[337380371,1725635457920,-500.0,0.00019178,2]
[337380373,1725635457931,-500.0,0.00019178,2]
[337380375,1725635457941,-500.0,0.00019178,2]
[337380377,1725635457951,-500.0,0.00019178,2]
[337380379,1725635457966,-500.0,0.00019178,2]
[337380381,1725635457975,-175.41172744,0.00019178,2]
[337380383,1725635457985,-500.0,0.00019178,2]
[337380385,1725635457995,-2941.86,0.00019178,2]
[337380387,1725635458004,-500.0,0.00019178,2]
[337380389,1725635458015,-500.0,0.00019178,2]
[337380391,1725635458024,-518.81,0.00019178,2]
[337380393,1725635458033,-500.0,0.00019178,2]
[337380395,1725635458044,-500.0,0.00019178,2]
[337380397,1725635458054,-602.59,0.00019178,2]
[337380399,1725635458063,-1223.4,0.00019178,2]
[337380401,1725635458072,-564.51406974,0.00019178,2]
[337380403,1725635458082,-500.0,0.00019178,2]
[337380406,1725635458091,-1815.08,0.00019178,2]
[337380408,1725635458100,-500.0,0.00019178,2]
[337380409,1725635458109,-1109.4,0.00019178,2]
[337380411,1725635458118,-500.0,0.00019178,2]
[337380413,1725635458127,-500.0,0.00019178,2]
[337380415,1725635458137,-500.0,0.00019178,2]
[337380418,1725635458147,-850.23,0.00019178,2]
[337380420,1725635458157,-1302.53,0.00019178,2]
[337380422,1725635458166,-1759.32,0.00019178,2]
[337380424,1725635458176,-500.0,0.00019178,2]
[337380426,1725635458185,-891.12,0.00019178,2]
[337380428,1725635458194,-1750.7,0.00019178,2]
[337380430,1725635458204,-500.0,0.00019178,2]
[337380432,1725635458217,-500.0,0.00019178,2]
[337380435,1725635458228,-1759.01,0.00019178,2]
[337380437,1725635458238,-500.0,0.00019178,2]
[337380439,1725635458248,-766.52,0.00019178,2]
[337380441,1725635458258,-500.0,0.00019178,2]
[337380443,1725635458268,-825.05,0.00019178,2]
[337380445,1725635458277,-1824.85,0.00019178,2]
[337380447,1725635458286,-500.0,0.00019178,2]
[337380449,1725635458295,-500.0,0.00019178,2]
[337380451,1725635458304,-703.18,0.00019178,2]
[337380453,1725635458315,-658.08,0.00019178,2]
[337380455,1725635458324,-507.94,0.00019178,2]
[337380457,1725635458334,-686.01,0.00019178,2]
[337380459,1725635458343,-500.0,0.00019178,2]
[337380461,1725635458353,-500.0,0.00019178,2]
[337380463,1725635458362,-659.89,0.00019178,2]
[337380465,1725635458372,-1870.38,0.00019178,2]
[337380467,1725635458382,-500.0,0.00019178,2]
[337380469,1725635458391,-1087.66,0.00019178,2]
[337380471,1725635458400,-2189.64,0.00019178,2]
[337380473,1725635458410,-500.0,0.00019178,2]
[337380475,1725635458419,-500.0,0.00019178,2]
[337380477,1725635458428,-500.0,0.00019178,2]
[337380479,1725635458438,-500.0,0.00019178,2]
[337380481,1725635458447,-500.0,0.00019178,2]
[337380483,1725635458456,-930.47,0.00019178,2]
[337380485,1725635458472,-11086.34,0.00019178,2]
[337380487,1725635458483,-11086.34,0.00019178,2]
[337380489,1725635458492,-11086.34,0.00019178,2]
[337380491,1725635458503,-11086.34,0.00019178,2]
[337380494,1725635458522,-500.0,0.00019178,2]
[337380496,1725635458532,-11086.34,0.00019178,2]
[337380498,1725635458542,-1407.25,0.00019178,2]
[337380500,1725635458552,-11086.34,0.00019178,2]
[337380502,1725635458562,-11086.34,0.00019178,2]
[337380504,1725635458572,-11086.34,0.00019178,2]
[337380506,1725635458582,-11086.34,0.00019178,2]
[337380508,1725635458591,-11086.34,0.00019178,2]
[337380510,1725635458601,-1301.2,0.00019178,2]
[337380513,1725635458611,-11086.34,0.00019178,2]
[337380515,1725635458623,-11086.34,0.00019178,2]
[337380517,1725635458634,-500.0,0.00019178,2]
[337380519,1725635458645,-11086.34,0.00019178,2]
[337380521,1725635458659,-11086.34,0.00019178,2]
[337380523,1725635458668,-11086.34,0.00019178,2]
[337380525,1725635458678,-11086.34,0.00019178,2]
[337380527,1725635458687,-11086.34,0.00019178,2]
[337380529,1725635458697,-500.0,0.00019178,2]
[337380531,1725635458706,-11086.34,0.00019178,2]
[337380534,1725635458719,-11086.34,0.00019178,2]
[337380536,1725635458729,-11086.34,0.00019178,2]
[337380538,1725635458740,-11086.34,0.00019178,2]
[337380540,1725635458749,-11086.34,0.00019178,2]
[337380542,1725635458759,-500.0,0.00019178,2]
[337380544,1725635458768,-500.0,0.00019178,2]
[337380546,1725635458778,-500.0,0.00019178,2]
[337380548,1725635458788,-11086.34,0.00019178,2]
[337380550,1725635458797,-251.04483377,0.00019178,2]
[337380552,1725635458807,-11086.49862077,0.00019178,2]
[337380554,1725635458816,-500.0,0.00019178,2]
[337380556,1725635458826,-1056.08,0.00019178,2]
[337380558,1725635458836,-500.0,0.00019178,2]
[337380560,1725635458846,-500.0,0.00019178,2]
[337380561,1725635458856,-500.0,0.00019178,2]
[337380563,1725635458866,-500.0,0.00019178,2]
[337380566,1725635458877,-3042.96,0.00019178,2]
[337380567,1725635458887,-2093.22,0.00019178,2]
[337380570,1725635458897,-1342.45,0.00019178,2]
[337380572,1725635458907,-1422.63,0.00019178,2]
[337380573,1725635458916,-500.0,0.00019178,2]
[337380575,1725635458926,-500.0,0.00019178,2]
[337380577,1725635458936,-500.0,0.00019178,2]
[337380579,1725635458945,-500.0,0.00019178,2]
[337380581,1725635458956,-500.0,0.00019178,2]
[337380583,1725635458969,-500.0,0.00019178,2]
[337380585,1725635458978,-500.0,0.00019178,2]
[337380587,1725635458987,-2852.83,0.00019178,2]
[337380589,1725635458997,-500.0,0.00019178,2]
[337380591,1725635459006,-1050.5,0.00019178,2]
[337380593,1725635459016,-500.0,0.00019178,2]
[337380595,1725635459026,-603.02,0.00019178,2]
[337380597,1725635459035,-500.0,0.00019178,2]
[337380599,1725635459045,-825.83,0.00019178,2]
[337380601,1725635459056,-500.0,0.00019178,2]
[337380603,1725635459065,-500.0,0.00019178,2]
[337380605,1725635459075,-735.62,0.00019178,2]
[337380607,1725635459085,-500.0,0.00019178,2]
[337380609,1725635459094,-500.0,0.00019178,2]
[337380611,1725635459104,-500.0,0.00019178,2]
[337380613,1725635459113,-500.0,0.00019178,2]
[337380615,1725635459123,-500.0,0.00019178,2]
[337380617,1725635459133,-25870.76,0.00019178,2]
[337380620,1725635459143,-500.0,0.00019178,2]
[337380622,1725635459153,-2036.65,0.00019178,2]
[337380624,1725635459163,-314.3119079,0.00019178,2]
[337380626,1725635459173,-500.0,0.00019178,2]
[337380628,1725635459183,-500.0,0.00019178,2]
[337380630,1725635459192,-529.79715347,0.00019178,2]
[337380632,1725635459201,-1054.12,0.00019178,2]
[337380634,1725635459212,-519.98884365,0.00019178,2]
[337380636,1725635459222,-587.94744208,0.00019178,2]
[337380638,1725635459232,-585.32,0.00019178,2]
[337380640,1725635459241,-500.0,0.00019178,2]
[337380642,1725635459251,-1152.21,0.00019178,2]
[337380644,1725635459261,-500.0,0.00019178,2]
[337380646,1725635459272,-2167.46,0.00019178,2]
[337380648,1725635459282,-500.0,0.00019178,2]
[337380650,1725635459292,-500.0,0.00019178,2]
[337380652,1725635459303,-500.0,0.00019178,2]
[337380654,1725635459313,-797.57,0.00019178,2]
[337380656,1725635459322,-2005.74,0.00019178,2]
[337380658,1725635459331,-500.0,0.00019178,2]
[337380660,1725635459341,-500.0,0.00019178,2]
[337380662,1725635459351,-303.0,0.00019178,2]
[337380664,1725635459361,-500.0,0.00019178,2]
[337380666,1725635459370,-500.0,0.00019178,2]
[337380668,1725635459380,-845.93,0.00019178,2]
[337380670,1725635459389,-500.0,0.00019178,2]
[337380672,1725635459398,-500.0,0.00019178,2]
[337380674,1725635459408,-500.0,0.00019178,2]
[337380675,1725635459417,-500.0,0.00019178,2]
[337380678,1725635459427,-712.12,0.00019178,2]
[337380680,1725635459437,-500.0,0.00019178,2]
[337380681,1725635459447,-500.0,0.00019178,2]
[337380683,1725635459457,-500.0,0.00019178,2]
[337380686,1725635459469,-2282.79,0.00019178,2]
[337380688,1725635459479,-1796.13,0.00019178,2]
[337380690,1725635459490,-701.54,0.00019178,2]